bitfinex-derivatives/quotes_ETHF0:USTF0_20210703
["timestamp","ask_amount","ask_price","bid_price","bid_amount"]
[1625351526081,7.12151612,2195.2,2195.0,2.20527]
[1625351526532,7.12151612,2195.2,2194.1,14.2987]
[1625351526640,7.12151612,2195.2,2193.6,0.06033198]
[1625351526731,2.20527,2194.1,2194.0,2.20527]
[1625351528387,3.49444663,2194.8,2194.0,2.20527]
[1625351528486,3.49444663,2194.8,2194.0,5.79527]
[1625351528603,3.49492605,2195.2,2194.0,22.36959]
[1625351528786,2.20527,2194.5,2194.4,2.20527]
[1625351529197,2.20527,2194.5,2194.0,5.79527]
[1625351529852,4.59497,2194.5,2194.0,2.20527]
[1625351529951,4.59497,2194.5,2193.6,0.06033198]
[1625351530354,8.09048808,2194.5,2193.6,0.06033198]
[1625351530501,45.2296,2194.4,2193.6,0.06033198]
[1625351530702,48.72532713,2194.4,2193.6,0.06033198]
[1625351530851,4.41054,2193.7,2193.6,0.06033198]
[1625351530952,7.39434,2193.7,2193.6,0.06033198]
[1625351533656,8.31524,2193.7,2193.6,0.06033198]
[1625351534210,7.39434,2193.7,2193.6,0.06033198]
[1625351538934,4.41054,2193.7,2193.6,3.62323198]
[1625351539985,4.41054,2193.7,2193.6,3.198e-05]
[1625351540085,4.41054,2193.7,2193.1,14.3505]
[1625351540889,4.41054,2193.2,2193.1,14.3505]
[1625351540995,4.41054,2193.2,2192.6,2.20527]
[1625351541107,4.41054,2193.2,2191.4,4.759]
[1625351541239,9.41054,2193.2,2191.3,2.68062033]
[1625351541390,9.41054,2193.2,2190.8,2.68115338]
[1625351541488,42.3931,2192.5,2190.8,2.68115338]
[1625351541589,2.9664,2192.5,2190.8,2.68115338]
[1625351541791,2.9664,2192.5,2190.7,17.59753899]
[1625351541893,2.9664,2192.5,2190.9,0.13518523]
[1625351541992,2.9664,2192.5,2190.9,16.83458623]
[1625351542192,2.9664,2192.5,2191.2,56.4521]
[1625351542403,2.9664,2192.5,2191.2,1.15]
[1625351542492,2.9664,2192.5,2191.3,16.67968]
[1625351542594,5.41054,2193.2,2191.3,16.67968]
[1625351542692,4.41054,2193.2,2191.3,16.67968]
[1625351542843,2.20527,2192.4,2192.3,2.20527]
[1625351542945,2.20527,2192.4,2192.1,2.20527]
[1625351543297,2.20527,2192.4,2191.2,1.15]
[1625351543896,2.20527,2192.4,2191.3,16.661736]
[1625351544913,2.20527,2192.4,2192.0,2.20527]
[1625351546869,2.20527,2192.1,2192.0,2.20527]
[1625351548530,4.96157,2192.1,2192.0,2.20527]
[1625351550235,4.96157,2192.1,2190.9,1.0]
[1625351550336,4.96157,2192.1,2190.7,14.9162]
[1625351550740,9.96157,2192.1,2190.7,14.9162]
[1625351550841,51.9669,2191.4,2190.4,4.759]
[1625351550940,2.20527,2190.7,2190.6,2.20527]
[1625351551092,5.87057,2190.7,2190.6,2.20527]
[1625351552744,5.87057,2190.7,2189.4,1.0]
[1625351552849,5.87057,2190.7,2189.3,15.4651]
[1625351552946,8.07584,2190.7,2190.6,2.20527]
[1625351553395,3.6653,2190.7,2190.6,2.20527]
[1625351553546,1.0,2192.0,2190.6,2.20527]
[1625351553656,15.1319,2192.3,2190.6,2.20527]
[1625351554263,52.8409,2192.0,2190.6,2.20527]
[1625351554414,55.6443,2192.0,2190.6,2.20527]
[1625351554921,2.20527,2191.3,2191.2,2.20527]
[1625351556976,4.41054,2191.3,2191.2,2.20527]
[1625351557687,15.1319,2192.3,2191.2,2.20527]
[1625351557789,15.1319,2192.3,2191.2,4.66597]
[1625351557941,1.0,2193.0,2191.2,4.66597]
[1625351558035,2.63184521,2193.9,2191.2,4.66597]
[1625351558237,15.2034,2193.6,2191.2,4.66597]
[1625351558388,15.2034,2193.6,2191.3,17.423569]
[1625351558589,15.2034,2193.6,2191.7,1.15]
[1625351558688,15.2034,2193.6,2191.7,4.3935]
[1625351558940,2.20527,2192.6,2192.2,2.20527]
[1625351559993,2.20527,2192.6,2192.0,2.20527]
[1625351561048,4.41054,2192.1,2192.0,2.20527]
[1625351565171,1.0,2193.2,2192.0,5.52527]
[1625351565269,15.2034,2193.6,2192.0,5.52527]
[1625351565771,20.2034,2193.6,2192.0,5.52527]
[1625351566492,20.2034,2193.6,2192.0,2.20527]
[1625351567040,6.89214,2192.1,2192.0,2.20527]
[1625351568698,47.67584,2192.1,2192.0,2.20527]
[1625351569752,47.67584,2192.1,2190.7,15.6942]
[1625351569853,47.67584,2192.1,2190.7,14.6942]
[1625351570002,6.89214,2192.1,2190.7,14.6942]
[1625351570404,6.89214,2192.1,2190.8,16.520646]
[1625351571004,4.68687,2192.1,2191.7,2.20527]
[1625351572062,2.20527,2192.1,2191.7,2.20527]
[1625351573063,2.20527,2191.8,2191.7,2.20527]
[1625351575824,2.20527,2191.8,2190.7,14.6942]
[1625351576477,2.20527,2191.8,2190.8,16.56159]
[1625351577030,2.20527,2191.8,2191.3,2.20527]
[1625351577779,2.20527,2191.8,2190.7,14.6942]
[1625351577880,5.92187,2191.8,2190.7,14.6942]
[1625351578084,5.92187,2191.8,2190.6,14.6718]
[1625351578283,5.92187,2191.8,2189.5,1.0]
[1625351578385,10.92187,2191.8,2189.6,14.7362]
[1625351578987,5.92187,2191.8,2189.6,14.7362]
[1625351579089,2.20527,2190.2,2190.1,2.20527]
[1625351579401,2.20527,2190.2,2189.6,14.7362]
[1625351579646,2.20527,2190.2,2188.9,49.8498]
[1625351580146,5.75667,2190.2,2188.8,14.7706]
[1625351580245,5.75667,2190.2,2189.0,16.456982]
[1625351580595,5.75667,2190.2,2188.9,16.604994]
[1625351580748,5.75667,2190.2,2188.8,14.7706]
[1625351581046,5.75667,2190.2,2189.8,2.20527]
[1625351583101,2.20527,2189.9,2189.8,2.20527]
[1625351583753,2.20527,2189.9,2189.5,2.20527]
[1625351585066,2.20527,2189.6,2189.5,4.41054]
[1625351585367,2.20527,2189.9,2189.5,20.877483]
[1625351586019,2.20527,2189.9,2189.5,4.41054]
[1625351587069,2.20527,2189.9,2189.8,2.20527]
[1625351590725,2.20527,2189.9,2189.5,2.20527]
[1625351590874,5.41897,2189.9,2189.5,2.20527]
[1625351591176,2.20527,2189.6,2189.3,2.20527]
[1625351591877,2.20527,2189.6,2187.6,19.7275]
[1625351592027,2.20527,2189.6,2187.7,0.19482844]
[1625351592176,2.20527,2189.6,2187.6,14.9685]
[1625351592380,5.0,2189.5,2187.6,14.9685]
[1625351592529,40.7517,2189.0,2187.6,14.9685]
[1625351592730,44.3835,2189.0,2187.6,14.9685]
[1625351593081,3.6318,2189.0,2187.6,14.9685]
[1625351593182,2.20527,2188.5,2188.4,2.20527]
[1625351593836,5.31007,2188.5,2188.4,2.20527]
[1625351595185,7.51534,2188.5,2188.4,2.20527]
[1625351595938,7.51534,2188.5,2188.1,2.20527]
[1625351597043,3.1048,2188.5,2188.1,2.20527]
[1625351597194,2.20527,2189.1,2188.4,2.20527]
[1625351597295,4.85987,2189.1,2188.4,2.20527]
[1625351598670,4.85987,2189.1,2188.1,2.20527]
[1625351599923,43.26597,2189.1,2188.1,2.20527]
[1625351600673,4.85987,2189.1,2188.1,2.20527]
[1625351601176,2.20527,2188.2,2188.1,2.20527]
[1625351601377,2.20527,2188.2,2187.6,14.9685]
[1625351601627,2.20527,2188.2,2186.3,1.0]
[1625351601877,2.20527,2188.2,2186.4,15.2337]
[1625351601977,2.20527,2188.2,2186.4,16.2337]
[1625351603233,2.20527,2188.2,2187.8,2.20527]
[1625351604434,2.20527,2188.2,2187.6,2.20527]
[1625351605239,4.79887,2187.7,2187.6,2.20527]
[1625351606752,2.5936,2187.7,2187.6,2.20527]
[1625351606854,2.20527,2188.2,2187.6,2.20527]
[1625351607203,4.41054,2188.2,2188.1,2.20527]
[1625351609261,4.41054,2188.2,2187.6,2.20527]
[1625351609365,7.71514,2188.2,2187.6,2.20527]
[1625351610261,7.71514,2188.2,2186.5,1.0]
[1625351610364,7.71514,2188.2,2186.4,15.2337]
[1625351611212,2.20527,2187.2,2187.1,2.20527]
[1625351613216,4.91457,2187.2,2187.1,2.20527]
[1625351613666,2.7093,2187.2,2187.1,2.20527]
[1625351616138,2.20527,2187.6,2187.1,2.20527]
[1625351616238,1.0,2188.6,2187.1,2.20527]
[1625351616341,60.70477322,2190.9,2187.1,2.20527]
[1625351616439,1.0,2189.5,2187.1,2.20527]
[1625351616893,5.0,2189.1,2187.1,2.20527]
[1625351616991,1.0,2189.1,2187.1,2.20527]
[1625351617293,2.20527,2188.0,2187.9,2.20527]
[1625351617395,5.96687,2188.0,2187.9,2.20527]
[1625351618294,5.96687,2188.0,2187.6,2.20527]
[1625351619247,2.20527,2187.7,2187.6,2.20527]
[1625351620448,2.20527,2187.7,2187.6,7e-05]
[1625351620549,2.20527,2187.7,2186.5,1.0]
[1625351620652,2.20527,2187.7,2186.4,15.2337]
[1625351621303,2.20527,2187.1,2187.0,2.20527]
[1625351624062,1.0,2188.4,2187.0,2.20527]
[1625351624163,2.58668056,2190.5,2187.0,5.81247]
[1625351624164,1.81110665,2190.5,2187.0,5.81247]
[1625351624263,1.0,2189.1,2187.0,5.81247]
[1625351624516,6.0,2189.1,2187.0,5.81247]
[1625351625269,2.20527,2187.8,2187.6,2.20527]
[1625351626270,4.58687,2187.8,2187.6,2.20527]
[1625351627125,2.3816,2187.8,2187.6,2.20527]
[1625351627222,1.0,2189.0,2187.6,2.20527]
[1625351627324,17.50027,2188.7,2188.6,2.20527]
[1625351627573,2.20527,2188.7,2188.6,2.20527]
[1625351627672,2.20527,2188.7,2187.6,2.4217]
[1625351628374,2.20527,2188.7,2187.7,16.704639]
[1625351629392,2.20527,2188.7,2188.5,2.20527]
[1625351629892,2.20527,2188.7,2187.3,1.0]
[1625351629992,2.20527,2188.7,2187.1,3.1529]
[1625351630142,4.59257,2188.7,2187.1,3.1529]
[1625351630243,4.59257,2188.7,2186.8,39.5686]
[1625351630550,4.59257,2188.7,2186.9,16.505168]
[1625351630650,4.59257,2188.7,2186.9,20.194668]
[1625351631299,2.20527,2188.2,2188.1,2.20527]
[1625351631703,15.1224,2189.2,2188.1,2.20527]
[1625351631799,15.1224,2189.2,2188.1,5.35637]
[1625351632050,1.0,2190.8,2188.1,5.35637]
[1625351632149,1.0,2190.8,2188.1,6.35637]
[1625351632250,1.0,2190.8,2188.2,16.703182]
[1625351632350,14.7575,2190.7,2188.2,16.703182]
[1625351632600,5.0,2190.6,2188.2,16.703182]
[1625351633354,2.20527,2189.4,2189.3,5.75207]
[1625351635306,2.20527,2189.7,2189.3,5.75207]
[1625351636010,14.7575,2190.7,2189.3,5.75207]
[1625351636358,14.7575,2190.7,2189.4,16.659264]
[1625351636608,1.0,2192.0,2189.4,16.659264]
[1625351636708,5.0,2192.0,2189.4,16.659264]
[1625351636810,45.6985,2192.1,2189.4,16.659264]
[1625351637259,14.9731,2192.2,2189.4,16.659264]
[1625351637360,2.20527,2191.3,2190.8,2.20527]
[1625351639480,2.20527,2191.3,2191.2,2.20527]
[1625351639579,2.20527,2191.3,2191.2,1.12248149]
[1625351640634,2.20527,2191.3,2189.9,2.15]
[1625351640734,5.79437,2191.3,2189.9,1.15]
[1625351641334,5.79437,2191.3,2189.2,15.6214]
[1625351641441,2.20527,2190.6,2190.5,2.20527]
[1625351641539,4.82287,2190.6,2190.5,2.20527]
[1625351642790,4.82287,2190.6,2189.2,15.6214]
[1625351642891,4.82287,2190.6,2189.2,14.6214]
[1625351643092,4.82287,2190.6,2189.1,15.1512]
[1625351643398,4.41054,2189.2,2189.0,2.20527]
[1625351643495,7.96344,2189.2,2189.0,2.20527]
[1625351643744,5.75817,2189.2,2189.0,2.20527]
[1625351644062,5.75817,2189.2,2187.6,1.0]
[1625351644167,5.75817,2189.2,2187.5,14.8501]
[1625351644906,5.75817,2189.2,2187.6,16.639462]
[1625351645307,2.20527,2189.2,2187.6,16.639462]
[1625351645408,2.20527,2189.2,2188.8,2.20527]
[1625351647412,2.20527,2189.2,2189.1,2.20527]
[1625351651621,2.20527,2189.2,2188.8,2.20527]
[1625351653522,2.20527,2188.9,2188.8,2.20527]
[1625351653871,5.91177,2188.9,2188.6,2.20527]
[1625351654623,5.91177,2188.9,2187.5,14.8501]
[1625351655126,5.91177,2188.9,2187.6,16.611403]
[1625351655227,2.20527,2189.2,2187.6,16.611403]
[1625351655378,2.20527,2189.2,2188.0,1.15]
[1625351655479,4.41054,2189.2,2189.0,2.20527]
[1625351655578,4.41054,2189.2,2189.0,5.31247]
[1625351660804,4.41054,2189.2,2189.0,3.1072]
[1625351660900,4.41054,2189.2,2188.0,1.15]
[1625351661551,2.20527,2188.7,2188.6,2.20527]
[1625351662359,2.20527,2188.7,2188.0,1.15]
[1625351662460,3.12407,2188.7,2186.9,4.759]
[1625351662558,8.12407,2188.7,2186.2,14.2494]
[1625351663261,46.7116,2188.1,2186.2,14.2494]
[1625351663360,49.2037,2188.1,2186.2,14.2494]
[1625351663660,2.20527,2186.5,2186.4,2.20527]
[1625351665621,4.41054,2186.5,2186.4,2.20527]
[1625351667473,0.16974,2186.5,2186.4,2.20527]
[1625351667572,2.20527,2186.8,2186.4,2.20527]
[1625351667972,2.20527,2186.8,2186.5,16.610612]
[1625351669447,1.0,2188.0,2186.5,16.610612]
[1625351669548,1.30272976,2188.5,2186.5,16.610612]
[1625351669650,2.20527,2187.9,2187.8,2.20527]
[1625351669747,1.30272976,2188.5,2187.8,5.88997]
[1625351669848,14.1951,2188.6,2187.8,5.88997]
[1625351669947,1.30392011,2189.0,2187.8,5.88997]
[1625351670349,1.30496127,2189.2,2187.8,5.88997]
[1625351670598,1.30530801,2189.3,2187.8,5.88997]
[1625351671600,4.41054,2187.9,2187.8,5.88997]
[1625351674820,7.91094,2187.9,2187.8,2.20527]
[1625351675574,7.91094,2187.9,2187.8,7e-05]
[1625351675674,7.91094,2187.9,2186.9,2.20527]
[1625351676379,7.91094,2187.9,2186.7,2.20527]
[1625351677429,4.41054,2187.9,2186.7,2.20527]
[1625351677678,2.20527,2186.8,2186.7,4.41054]
[1625351678480,1.0,2188.3,2186.7,7.20484]
[1625351678579,1.30659913,2188.5,2186.7,7.20484]
[1625351678932,2.21389913,2188.5,2186.7,7.20484]
[1625351679032,7.21389913,2188.5,2186.7,7.20484]
[1625351679134,2.21389913,2188.5,2186.7,7.20484]
[1625351679232,1.30606697,2188.3,2186.7,7.20484]
[1625351679635,2.20527,2187.3,2187.2,2.20527]
[1625351679734,2.20527,2187.3,2187.2,5.36887]
[1625351681036,2.20527,2187.3,2187.2,3.1636]
[1625351681137,2.20527,2187.3,2186.7,2.20527]
[1625351681287,48.58777,2187.3,2186.7,2.20527]
[1625351681690,2.20527,2186.8,2186.7,4.41054]
[1625351686455,1.55097,2186.8,2186.7,4.41054]
[1625351686556,2.20527,2187.3,2186.7,4.41054]
[1625351686707,2.20527,2187.3,2186.7,7.93344]
[1625351687257,2.20527,2187.3,2186.8,16.554278]
[1625351687758,2.20527,2187.3,2187.2,4.41054]
[1625351687856,2.20527,2187.3,2187.2,7.48614]
[1625351688460,14.7713,2188.8,2187.2,7.48614]
[1625351688811,1.30653333,2188.5,2187.2,7.48614]
[1625351689228,1.30653333,2188.5,2187.3,16.486949]
[1625351689629,1.30795998,2188.7,2187.3,16.486949]
[1625351689727,2.20527,2187.9,2187.6,2.20527]
[1625351694254,2.20527,2187.9,2187.2,3.0756]
[1625351694357,2.20527,2187.9,2186.7,3.5229]
[1625351694502,2.20527,2187.9,2186.2,14.2494]
[1625351694952,2.20527,2187.9,2186.3,16.639217]
[1625351695102,2.20527,2187.9,2186.3,19.499317]
[1625351695653,42.80287,2187.9,2186.3,19.499317]
[1625351695756,42.80287,2187.9,2187.1,2.20527]
[1625351695757,2.20527,2187.2,2187.1,2.20527]
[1625351695912,4.65227,2187.2,2187.1,2.20527]
[1625351697010,2.30717586,2188.5,2187.1,2.20527]
[1625351697157,1.30717586,2188.5,2187.1,22.148766]
[1625351697359,1.3074111,2188.6,2187.1,22.148766]
[1625351697809,2.20527,2187.8,2187.7,2.20527]
[1625351697910,2.20527,2187.8,2187.7,5.43437]
[1625351698511,1.30766171,2188.7,2187.7,5.43437]
[1625351698713,1.30865918,2189.0,2187.7,5.43437]
[1625351699015,1.30865918,2189.0,2188.2,1.15]
[1625351699113,1.30865918,2189.0,2188.2,4.7635]
[1625351699315,1.30865918,2189.0,2188.3,16.609756]
[1625351699413,1.30945805,2189.2,2188.3,16.609756]
[1625351699815,2.61891609,2189.4,2188.9,2.20527]
[1625351699816,2.20527,2189.0,2188.9,2.20527]
[1625351699914,2.20527,2189.0,2188.9,4.68667]
[1625351700317,2.20527,2189.0,2188.9,2.4814]
[1625351700417,5.55987,2189.0,2188.9,2.4814]
[1625351700516,5.55987,2189.0,2187.5,1.0]
[1625351700665,5.55987,2189.0,2186.8,14.3544]
[1625351701117,5.55987,2189.0,2187.5,16.729762]
[1625351701217,5.55987,2189.0,2187.5,20.337362]
[1625351701821,2.20527,2188.5,2188.4,2.20527]
[1625351702221,2.20527,2188.5,2188.2,2.20527]
[1625351702320,5.69897,2188.5,2188.2,2.20527]
[1625351703023,5.69897,2188.5,2186.8,14.3544]
[1625351703323,5.69897,2188.5,2186.9,1.0]
[1625351703423,5.69897,2188.5,2186.8,14.3544]
[1625351703876,4.41054,2187.5,2187.4,2.20527]
[1625351704017,7.74144,2187.5,2187.2,2.20527]
[1625351704282,7.74144,2187.5,2186.2,14.7943]
[1625351704386,44.679,2187.3,2186.4,1.0]
[1625351704483,44.679,2187.3,2186.2,14.7943]
[1625351705037,44.679,2187.3,2186.3,16.584578]
[1625351705889,2.20527,2186.9,2186.8,2.20527]
[1625351707937,4.41054,2186.9,2186.8,2.20527]
[1625351711154,7.43854,2186.9,2186.8,2.20527]
[1625351715731,4.41054,2186.9,2186.8,2.20527]
[1625351717389,4.41054,2186.9,2186.8,4.57747]
[1625351717989,2.20527,2187.3,2186.8,4.57747]
[1625351719947,2.20527,2187.3,2187.2,2.20527]
[1625351720695,50.5803,2188.3,2187.2,2.20527]
[1625351720794,16.864715,2188.4,2187.2,2.20527]
[1625351720896,15.5561,2188.4,2187.2,2.20527]
[1625351721043,1.30937669,2188.5,2187.2,2.20527]
[1625351721245,1.30944392,2188.6,2187.2,2.20527]
[1625351721999,2.20527,2188.0,2187.9,4.82657]
[1625351723954,4.41054,2188.0,2187.9,4.82657]
[1625351725067,6.06962055,2188.7,2187.9,4.82657]
[1625351725469,4.759,2188.7,2187.9,4.82657]
[1625351725967,2.20527,2188.5,2188.4,2.20527]
[1625351726067,2.20527,2188.5,2188.4,4.56397]
[1625351727969,6.07481158,2188.7,2188.4,6.76924]
[1625351728070,4.759,2188.7,2188.4,6.76924]
[1625351728169,1.31569521,2188.8,2188.4,6.76924]
[1625351728377,2.20527,2189.0,2188.4,6.76924]
[1625351729576,3.52383465,2189.0,2188.4,6.76924]
[1625351730074,3.52383465,2189.0,2188.7,2.20527]
[1625351730376,8.28283465,2189.0,2188.7,2.20527]
[1625351730527,1.31811571,2188.9,2188.7,2.20527]
[1625351730884,4.63961571,2188.9,2188.7,2.20527]
[1625351731132,4.63961571,2188.9,2187.5,1.0]
[1625351731230,4.63961571,2188.9,2187.4,15.1678]
[1625351731834,1.31748614,2188.7,2187.5,64.008912]
[1625351731933,1.31748614,2188.7,2187.5,67.445112]
[1625351732082,1.31748614,2188.7,2188.5,4.80667]
[1625351732335,8.614e-05,2188.7,2188.5,4.80667]
[1625351732436,3.42546396,2189.2,2188.5,4.80667]
[1625351732545,3.42546396,2189.2,2188.5,9.80667]
[1625351732797,11.85737523,2190.7,2188.6,16.663947]
[1625351732798,1.31857562,2188.9,2188.6,16.663947]
[1625351733601,46.6435,2189.7,2188.6,16.663947]
[1625351733699,46.6435,2189.7,2188.5,4.80667]
[1625351734001,46.6435,2189.7,2189.0,2.20527]
[1625351734100,2.20527,2189.2,2189.0,2.20527]
[1625351734402,2.20527,2189.2,2188.5,2.20527]
[1625351736063,4.41054,2189.2,2188.5,4.41054]
[1625351737670,4.41054,2189.2,2187.6,1.0]
[1625351737824,4.41054,2189.2,2187.4,15.1678]
[1625351738068,2.20527,2188.5,2188.2,2.20527]
[1625351738229,2.20527,2188.5,2188.2,4.98977]
[1625351738424,3.42164237,2189.4,2188.2,4.98977]
[1625351738573,3.41929112,2189.5,2188.2,4.98977]
[1625351740081,2.20527,2188.9,2188.7,2.20527]
[1625351742183,4.41054,2188.9,2188.7,2.20527]
[1625351744088,2.20527,2189.1,2188.7,2.20527]
[1625351744389,2.20527,2189.1,2188.7,4.67617]
[1625351746097,2.20527,2189.1,2189.0,2.20527]
[1625351748053,2.20527,2189.1,2188.7,2.4709]
[1625351749470,2.20527,2189.1,2188.4,2.20527]
[1625351750127,2.20527,2189.1,2189.0,2.20527]
[1625351750273,2.20527,2189.1,2189.0,4.85917]
[1625351750975,3.41588081,2189.7,2189.0,4.85917]
[1625351751525,3.41588081,2189.7,2189.1,16.693871]
[1625351751674,3.41732164,2189.9,2189.1,16.693871]
[1625351752176,3.41732164,2189.9,2189.8,4.41054]
[1625351752279,3.41732164,2189.9,2189.8,7.92334]
[1625351752579,5.62443256,2190.0,2189.8,7.92334]
[1625351752980,3.41916256,2190.0,2189.8,7.92334]
[1625351753229,2.20527,2190.2,2189.8,7.92334]
[1625351754130,2.20527,2190.2,2190.1,2.20527]
[1625351754732,2.20527,2190.2,2190.1,1.12200388]
[1625351756189,0.76127,2190.5,2190.1,1.12200388]
[1625351756890,3.42109365,2191.1,2190.1,1.12200388]
[1625351757443,3.42131607,2191.2,2190.2,16.521411]
[1625351757996,3.4205885,2191.8,2190.8,39.5789]
[1625351758147,2.20527,2191.6,2191.5,2.20527]
[1625351758246,2.20527,2191.6,2191.5,5.48107]
[1625351762707,4.42306332,2192.7,2191.5,5.48107]
[1625351762809,3.42306332,2192.7,2191.5,5.48107]
[1625351763411,4.21058726,2192.9,2191.5,5.48107]
[1625351763412,3.42272686,2192.9,2191.5,5.48107]
[1625351764172,2.20527,2192.4,2192.2,2.20527]
[1625351766178,4.41054,2192.4,2192.2,2.20527]
[1625351767004,4.41054,2192.4,2192.0,2.20527]
[1625351767703,4.41054,2192.4,2191.1,1.0]
[1625351767797,4.41054,2192.4,2189.4,15.2038]
[1625351767903,6.0,2192.3,2189.4,15.2038]
[1625351768002,6.0,2192.3,2190.0,14.9181]
[1625351768200,2.20527,2190.3,2190.1,2.20527]
[1625351768302,2.20527,2190.3,2190.0,14.9181]
[1625351768505,2.20527,2190.3,2189.8,2.20527]
[1625351769103,2.20527,2190.5,2189.8,2.20527]
[1625351769253,2.20527,2190.5,2190.3,1.15]
[1625351769354,2.20527,2190.5,2190.3,3.4497]
[1625351769553,1.0,2192.2,2190.4,16.645374]
[1625351769653,3.4108452,2192.4,2190.4,16.645374]
[1625351769905,4.19796332,2192.6,2190.4,16.645374]
[1625351769906,3.40921525,2192.6,2190.4,16.645374]
[1625351770258,2.20527,2191.1,2190.9,2.20527]
[1625351772210,1.0,2192.3,2190.9,2.20527]
[1625351772311,4.40973669,2192.8,2190.9,2.20527]
[1625351772460,14.1729,2193.0,2190.9,2.20527]
[1625351772710,14.1729,2193.0,2191.0,16.595304]
[1625351774313,2.20527,2191.6,2191.5,2.20527]
[1625351774410,2.20527,2191.6,2191.5,4.95767]
[1625351774714,1.0,2192.9,2191.5,4.95767]
[1625351774818,14.1729,2193.0,2191.5,4.95767]
[1625351775016,4.759,2193.3,2191.5,4.95767]
[1625351775164,3.40178292,2193.6,2191.5,4.95767]
[1625351775716,1.0,2193.8,2191.5,4.95767]
[1625351775818,1.0,2193.8,2191.5,5.95767]
[1625351775968,1.0,2193.8,2191.6,16.594377]
[1625351776068,19.06277681,2194.0,2192.0,1.15]
[1625351776174,19.06277681,2194.0,2192.0,4.7154]
[1625351776267,2.20527,2192.4,2192.3,2.20527]
[1625351776719,2.20527,2192.4,2192.3,1.12304212]
[1625351777568,2.20527,2192.4,2192.0,1.15]
[1625351778374,2.20527,2192.1,2191.7,2.20527]
[1625351778921,2.20527,2192.1,2191.8,16.668717]
[1625351780105,2.20527,2192.1,2191.8,19.784117]
[1625351780306,2.20527,2192.0,2191.8,19.784117]
[1625351781105,2.20527,2192.1,2191.8,19.784117]
[1625351781519,1.0,2193.4,2191.8,19.784117]
[1625351781609,15.6591,2194.0,2191.8,19.784117]
[1625351781709,15.6591,2194.0,2191.8,20.784117]
[1625351782261,2.20527,2192.7,2192.6,2.20527]
[1625351784372,4.41054,2192.7,2192.6,2.20527]
[1625351786769,4.41054,2192.7,2191.4,1.0]
[1625351786868,4.41054,2192.7,2190.8,5.0]
[1625351787018,4.41054,2192.7,2190.8,6.0]
[1625351787319,4.41054,2192.7,2191.1,14.3617]
[1625351787520,4.41054,2192.7,2191.2,16.624804]
[1625351788422,4.63067,2192.2,2191.9,2.20527]
[1625351789429,4.63067,2192.2,2191.1,14.3617]
[1625351790339,2.20527,2191.7,2191.5,2.20527]
[1625351790490,4.95617,2191.7,2191.5,2.20527]
[1625351792116,1.0,2193.1,2191.5,2.20527]
[1625351792204,53.2687,2193.4,2191.5,5.37627]
[1625351792453,2.20527,2192.2,2191.5,7.58154]
[1625351792955,2.20527,2192.2,2191.6,16.449097]
[1625351793205,2.20527,2192.2,2192.0,1.15]
[1625351793356,2.20527,2192.2,2192.0,4.4676]
[1625351794414,2.20527,2192.2,2192.1,4.41054]
[1625351802559,2.20527,2192.2,2192.1,6.70874]
[1625351805323,2.20527,2192.4,2192.1,6.70874]
[1625351805971,2.20527,2192.4,2192.2,16.481826]
[1625351806425,2.20527,2192.7,2192.2,16.481826]
[1625351808478,2.20527,2192.7,2192.6,2.20527]
[1625351812108,2.20527,2192.7,2192.1,2.20527]
[1625351812208,5.13917,2192.7,2192.1,2.20527]
[1625351812307,5.13917,2192.7,2191.3,14.7175]
[1625351812509,2.20527,2191.8,2191.6,2.20527]
[1625351812608,5.13897,2191.8,2191.6,2.20527]
[1625351813510,5.13897,2191.8,2191.4,2.20527]
[1625351814512,2.20527,2191.5,2191.4,2.20527]
[1625351817371,2.20527,2191.8,2191.4,2.20527]
[1625351818320,54.4177,2191.7,2191.4,2.20527]
[1625351818522,2.20527,2191.5,2191.4,2.20527]
[1625351819575,2.20527,2191.8,2191.4,2.20527]
[1625351819725,3.4322,2192.8,2191.4,4.56767]
[1625351819824,2.4322,2192.8,2191.4,4.56767]
[1625351820276,2.4322,2192.8,2191.8,46.2077]
[1625351820625,2.20527,2192.3,2192.2,2.20527]
[1625351821726,2.20527,2192.3,2192.0,2.20527]
[1625351822578,4.41054,2192.3,2192.0,2.20527]
[1625351827336,2.20527,2192.3,2192.0,2.20527]
[1625351828640,2.20527,2192.3,2192.2,2.20527]
[1625351832707,2.20527,2192.7,2192.2,2.20527]
[1625351834114,2.20527,2192.7,2192.3,16.57806]
[1625351834216,2.20527,2192.7,2192.6,55.5354]
[1625351834314,2.20527,2192.7,2192.6,58.4247]
[1625351834663,2.20527,2192.7,2192.6,60.62997]
[1625351835515,2.20527,2192.7,2192.6,5.09457]
[1625351836566,2.20527,2192.9,2192.6,5.09457]
[1625351837469,2.20527,2193.2,2192.6,5.09457]
[1625351838168,2.20527,2193.2,2192.7,16.620844]
[1625351838471,2.20527,2193.2,2192.6,2.20527]
[1625351838572,5.72067,2193.2,2192.6,2.20527]
[1625351840733,5.72067,2193.2,2192.9,2.20527]
[1625351842689,2.20527,2193.0,2192.9,2.20527]
[1625351844743,2.20527,2193.2,2192.9,2.20527]
[1625351845993,2.20527,2193.2,2192.9,4.49537]
[1625351846144,2.08707932,2193.5,2192.9,4.49537]
[1625351846449,0.53357932,2193.5,2193.0,16.485823]
[1625351846549,7.932e-05,2193.5,2193.0,16.485823]
[1625351846706,7.932e-05,2193.5,2193.4,47.08714]
[1625351846805,7.932e-05,2193.5,2193.4,49.58684]
[1625351846958,7.932e-05,2193.5,2193.4,6.91024]